[Event "Karnataka State Open-ch 2018"]
[Site "Bengaluru"]
[Date "2018.04.17"]
[Round "7"]
[White "Hardik, Jha"]
[Black "Shyama Krishna S"]
[Result "1-0"]
[ECO "D05"]
[WhiteElo "1882"]
[BlackElo "1418"]
[Annotator "NA"]
[PlyCount "111"]
[EventDate "2018.??.??"]
[EventType "swiss"]
[EventCountry "IND"]
[SourceTitle "playchess.com"]
[Source "ChessBase"]
[SourceQuality "1"]
[TimeControl "5400+30"]

{[%evp 22,110,26,0,22,6,15,-39,-28,-42,130,-30,49,46,297,0,35,20,137,66,102,77,132,154,134,118,137,62,62,27,46,37,39,33,29,32767,32767,32767,32767,32767,32767,18,11,0,170,118,427,210,234,225,233,238,267,230,236,224,204,263,526,399,32767,444,496,504,32767,32767,32767,512,483,527,661,32767,1495,755,737,835,12839,5922,12838,6268,5089,32767,32767,1160,5102,32767,29985,12846,29998,29999,29999]} 1. Nf3 {[%emt 0:00:00]} d5 {[%emt 0:00:04]} 2. d4 {[%emt 0:00:00]} Nf6 {[%emt 0:00:06]} 3. e3 {[%emt 0:01:10]} e6 {[%emt 0:02:04]} 4. Bd3 {[%emt 0:00:13]} c5 {[%emt 0:01:00]} 5. c3 {[%emt 0:00:23]} Nc6 {[%emt 0:00:35]} 6. Nbd2 {[%emt 0:02:14]} Be7 {[%emt 0:01:07]} 7. O-O {[%emt 0:00:38]} O-O {[%emt 0:00:10]} 8. Re1 {[%emt 0:00:12]} Qc7 {[%emt 0:08:31] D05: Colle System with ...e6} 9. e4 {[%emt 0:02:02]} (9. Nf1 e5 10. Nxe5 Nxe5 11. dxe5 Qxe5 12. Ng3 Rd8 13. Qc2 {0-1 (47) Stanojevic,B (2300)-Pap,M (2476) Banja Koviljaca 2013}) 9... dxe4 {[%emt 0:02:13]} 10. Nxe4 {[%emt 0:00:28]} cxd4 {[%emt 0:01:47]} 11. cxd4 {[%emt 0:02:05]} Nb4 {[%emt 0:03:42]} 12. Bb1 {[%emt 0:00:07]} b6 {[%emt 0:03:38]} 13. a3 {[%emt 0:01:42]} Nbd5 {[%emt 0:01:00]} 14. Nfg5 $146 {[%emt 0:02:17]} ({Predecessor:} 14. Qd3 Bb7 15. Bg5 g6 {½-½ (58) Rawski,S (2240)-Schmidt,P (2340) Polanica Zdroj 1998}) 14... Bb7 {[%emt 0:08:07]} 15. Qd3 {[%emt 0:01:39]} Rfc8 $2 {[%emt 0:10:47]} ({Not} 15... Ng4 16. Qh3 $16) (15... Rac8 $15 {stays ahead.} 16. Bd2 Nxe4 17. Qxe4 Nf6) 16. Bd2 $2 {[%emt 0:00:57]} (16. Nxf6+ $16 Nxf6 17. Qh3) 16... g6 {[%emt 0:02:59]} ({Don't play} 16... Ng4 $6 17. Qh3 $16) ({Black should try} 16... h6 $15 17. Nf3 Nxe4 18. Qxe4 Nf6) 17. Qh3 {[%emt 0:04:42]} Bf8 $2 {[%emt 0:03:38] [#]} (17... Qd7 $11 {and Black stays safe.}) 18. Bd3 $2 {[%emt 0:06:11]} (18. Ba2 $1 $18 {[%cal Ra2d5]} Bg7 19. Bxd5 Nxd5 20. Qxh7+ Kf8 {[#]} 21. Re3 $1 {[%mdl 512]}) 18... h6 {[%emt 0:17:46]} 19. Nf3 {[%emt 0:03:22]} h5 {[%emt 0:06:18]} (19... Nh5 $11 20. Rac1 Qe7) 20. Ne5 {[%emt 0:01:35]} (20. Rac1 $18 Qe7 21. Bg5) 20... Nxe4 {[%emt 0:01:36]} 21. Bxe4 {[%emt 0:00:08]} Ne7 {[%emt 0:02:14]} ({Black should try} 21... Qe7 $14) 22. Rac1 {[%emt 0:01:58]} Qxc1 {[%emt 0:01:42]} 23. Bxc1 {[%emt 0:01:03]} Bxe4 {[%emt 0:00:11]} 24. Qe3 {[%emt 0:01:33]} (24. Qh4 $16 Bc6 25. Qf6) 24... Bd5 {[%emt 0:03:01]} 25. Bd2 {[%emt 0:03:14]} Nf5 {[%emt 0:00:37]} 26. Qd3 {[%emt 0:00:38]} Rc7 {[%emt 0:02:19]} 27. h3 {[%emt 0:02:34]} Rac8 {[%emt 0:02:15]} 28. g4 {[%emt 0:05:52]} hxg4 {[%emt 0:00:33]} 29. hxg4 {[%emt 0:00:01]} Nd6 {[%emt 0:00:08]} 30. g5 {[%emt 0:02:30]} Be7 {[%emt 0:03:21] [#]} 31. Ng4 {[%emt 0:01:51]} ({White should play} 31. Nxg6 $1 $16 {[%mdl 512]} fxg6 32. Qxg6+ Kf8 33. Bf4) 31... Nf5 $1 {[%emt 0:01:49]} 32. Nf6+ {[%emt 0:04:09]} Kg7 $2 {[%emt 0:01:18]} (32... Bxf6 $1 $11 {and Black is okay.} 33. gxf6 Nh4) 33. Bf4 {[%emt 0:01:35]} ({White should try} 33. Nxd5 $18 exd5 34. Re5) 33... Bd6 $2 {[%emt 0:01:42]} (33... Bxf6 $16 34. gxf6+ Kxf6) 34. Nxd5 {[%emt 0:02:31]} (34. Bxd6 $142 Nxd6 35. Qe3) 34... exd5 {[%emt 0:00:02]} 35. Bxd6 {[%emt 0:00:31]} Nxd6 {[%emt 0:00:06]} 36. Qg3 {[%emt 0:00:08]} Ne4 {[%emt 0:01:35]} 37. Qe5+ {[%emt 0:00:03]} f6 {[%emt 0:00:24]} 38. gxf6+ {[%emt 0:01:53]} ({Don't play} 38. Qxd5 $6 Nxg5 39. Kg2 Nf7) 38... Nxf6 {[%emt 0:00:07]} 39. Qd6 {[%emt 0:00:52]} Rc1 $2 {[%emt 0:02:18]} (39... Rf7 40. Re7 Rcf8) 40. Rxc1 {[%emt 0:00:05]} Rxc1+ {[%emt 0:00:04]} 41. Kg2 Re1 {[%emt 0:01:09]} 42. Qc7+ {[%emt 0:01:22]} Kh6 {[%emt 0:00:23]} 43. Qxa7 {[%emt 0:01:32]} Re2 {[%emt 0:01:42]} 44. Qf7 {[%emt 0:02:32]} Kg5 {[%emt 0:01:04]} 45. b4 {[%emt 0:02:31]} b5 {[%emt 0:00:25]} 46. Qb7 {[%emt 0:01:23]} Ra2 {[%emt 0:01:09]} 47. Qxb5 {[%emt 0:00:20]} Rxa3 {[%emt 0:00:08]} 48. Qc5 {[%emt 0:00:47]} Ra2 {[%emt 0:01:41]} 49. Qe7 {[%emt 0:00:25]} Ra6 {[%emt 0:02:21]} 50. Qe3+ {[%emt 0:00:04]} Kh4 {[%emt 0:01:00]} 51. b5 {[%emt 0:01:28]} Rb6 {[%emt 0:00:32]} 52. Qd3 $18 {[%emt 0:01:03]} (52. Qf4+ $142 Kh5 53. Qc7 Rxb5 54. Qe5+ Kh6 55. Qxf6 Rb2 56. Qc6 Kg7 57. Qxd5) 52... Ne4 {[%emt 0:00:50]} 53. f3 {[%emt 0:01:58]} Ng5 {[%emt 0:00:37]} 54. f4 {[%emt 0:01:41]} Rf6 {[%emt 0:00:55]} 55. Qg3+ {[%emt 0:00:13]} Kh5 {[%emt 0:00:06]} 56. Qxg5# {[%emt 0:00:03]} 1-0

[Event "Karnataka State Open-ch 2018"]
[Site "Bengaluru"]
[Date "2018.04.17"]
[Round "7"]
[White "Keshav Kothari"]
[Black "Nachiketh, Adiga"]
[Result "1-0"]
[ECO "E71"]
[WhiteElo "1715"]
[BlackElo "1348"]
[Annotator "NA"]
[PlyCount "65"]
[EventDate "2018.??.??"]
[EventType "swiss"]
[EventCountry "IND"]
[SourceTitle "playchess.com"]
[Source "ChessBase"]
[SourceQuality "1"]
[TimeControl "5400+30"]

1. d4 {[%emt 0:00:00]} Nf6 {[%emt 0:00:13]} 2. c4 {[%emt 0:00:00]} g6 {[%emt 0:00:05]} 3. Nc3 {[%emt 0:00:00]} Bg7 {[%emt 0:00:08]} 4. e4 {[%emt 0:00:02]} d6 {[%emt 0:00:04]} 5. h3 {[%emt 0:00:15]} O-O {[%emt 0:00:05]} 6. Nf3 {[%emt 0:00:04]} e5 {[%emt 0:00:05]} 7. dxe5 {[%emt 0:00:07]} dxe5 {[%emt 0:00:05]} 8. Be3 {[%emt 0:00:05]} Qe7 {[%emt 0:01:21]} 9. Be2 {[%emt 0:05:46]} c6 {[%emt 0:01:19]} 10. O-O {[%emt 0:01:17]} Na6 {[%emt 0:01:28]} 11. a3 {[%emt 0:02:51]} Nh5 {[%emt 0:02:18]} 12. b4 {[%emt 0:20:03]} Nf4 {[%emt 0:01:47]} 13. c5 {[%emt 0:05:10]} Nc7 {[%emt 0:00:30]} 14. Bc4 {[%emt 0:07:59]} Be6 {[%emt 0:07:03]} 15. Qb3 {[%emt 0:07:10]} Bxc4 {[%emt 0:04:06]} 16. Qxc4 {[%emt 0:00:09]} Nce6 {[%emt 0:00:47]} 17. Rac1 {[%emt 0:18:30]} Qf6 {[%emt 0:01:56]} 18. Kh2 {[%emt 0:01:06]} g5 {[%emt 0:13:29]} 19. Ne2 {[%emt 0:09:54]} h5 {[%emt 0:00:38]} 20. Ng3 {[%emt 0:03:39]} g4 {[%emt 0:01:26]} 21. Ng1 {[%emt 0:00:06]} Ng5 {[%emt 0:02:12]} 22. Bxf4 {[%emt 0:06:04]} exf4 {[%emt 0:00:49]} 23. Nxh5 {[%emt 0:00:31]} Qe5 {[%emt 0:00:19]} 24. hxg4 {[%emt 0:01:55]} Nxe4 {[%emt 0:03:47]} 25. Nf3 {[%emt 0:00:44]} Qe7 {[%emt 0:01:03]} 26. Rfe1 {[%emt 0:02:53]} Rfe8 {[%emt 0:00:14]} 27. Nxg7 {[%emt 0:02:29]} Kxg7 {[%emt 0:00:20]} 28. Rc2 {[%emt 0:00:24]} Qe6 {[%emt 0:00:39]} 29. Qd4+ {[%emt 0:01:05]} Kg8 {[%emt 0:00:24]} 30. Rce2 {[%emt 0:00:12]} Qh6+ {[%emt 0:00:36]} 31. Kg1 {[%emt 0:00:05]} Nf6 {[%emt 0:00:09]} 32. g5 {[%emt 0:00:19]} Rxe2 {[%emt 0:00:27]} 33. Rxe2 1-0

[Event "Karnataka State Open-ch 2018"]
[Site "Bengaluru"]
[Date "2018.04.17"]
[Round "7"]
[White "Chaithanya Ganesh"]
[Black "Sanjay Sindhia, MH."]
[Result "1/2-1/2"]
[ECO "C00"]
[WhiteElo "1498"]
[BlackElo "1761"]
[Annotator "NA RC"]
[PlyCount "105"]
[EventDate "2018.??.??"]
[EventType "swiss"]
[EventCountry "IND"]
[SourceTitle "playchess.com"]
[Source "ChessBase"]
[SourceQuality "1"]
[TimeControl "5400+30"]

1. e4 {[%emt 0:00:00]} e6 {[%emt 0:00:01]} 2. d4 {[%emt 0:00:00]} b6 {[%emt 0:00:37]} 3. Nf3 {[%emt 0:04:42]} Bb7 {[%emt 0:00:06]} 4. Bd3 {[%emt 0:00:52]} c5 {[%emt 0:00:18]} 5. c3 {[%emt 0:00:38]} Nf6 {[%emt 0:00:29]} 6. Qe2 {[%emt 0:02:04]} cxd4 {[%emt 0:03:38]} 7. cxd4 {[%emt 0:04:33]} d5 {[%emt 0:01:11]} 8. e5 {[%emt 0:01:13]} Ne4 {[%emt 0:00:29]} 9. Nbd2 {[%emt 0:13:42]} Nxd2 {[%emt 0:06:10]} 10. Bxd2 {[%emt 0:00:43]} Be7 {[%emt 0:00:10]} 11. O-O {[%emt 0:01:52]} O-O {[%emt 0:00:56]} 12. Ne1 {[%emt 0:12:24]} Nc6 {[%emt 0:02:03]} 13. Nc2 {[%emt 0:00:24]} a5 {[%emt 0:01:17]} 14. Qg4 {[%emt 0:13:45]} Kh8 {[%emt 0:03:25]} 15. Qh3 {[%emt 0:05:01]} g6 {[%emt 0:01:10]} 16. Qh6 {[%emt 0:03:57]} Ba6 {[%emt 0:03:02]} 17. Bxa6 {[%emt 0:02:27]} Rxa6 {[%emt 0:00:14]} 18. f4 {[%emt 0:05:09]} f5 {[%emt 0:03:18]} 19. Rf3 {[%emt 0:02:30]} Rf7 {[%emt 0:01:38]} 20. Rc3 {[%emt 0:05:07]} b5 {[%emt 0:01:35]} 21. Rc1 {[%emt 0:02:29]} b4 {[%emt 0:01:51]} 22. Rg3 {[%emt 0:02:18]} Bf8 {[%emt 0:07:37]} 23. Qh3 {[%emt 0:00:16]} Kg8 {[%emt 0:01:10]} 24. Rd3 {[%emt 0:01:35]} Rc7 {[%emt 0:11:20]} 25. Ne1 {[%emt 0:01:27]} Na7 {[%emt 0:08:56]} 26. Qf3 {[%emt 0:03:11]} Rxc1 {[%emt 0:01:45]} 27. Bxc1 {[%emt 0:00:02]} Rc6 {[%emt 0:00:08]} 28. Be3 {[%emt 0:00:20]} Qb6 {[%emt 0:03:37]} 29. Qe2 {[%emt 0:01:03]} Nb5 {[%emt 0:01:35]} 30. h3 {[%emt 0:01:18]} Rc4 {[%emt 0:01:30]} 31. Kh2 {[%emt 0:02:54]} Be7 {[%emt 0:01:54]} 32. Qf2 Qd8 {[%emt 0:09:47]} 33. Rd1 {[%emt 0:01:19]} Bh4 {[%emt 0:02:10]} 34. g3 {[%emt 0:00:47]} Be7 {[%emt 0:00:28]} 35. Rc1 {[%emt 0:02:21]} Qc8 {[%emt 0:01:56]} 36. Rd1 {[%emt 0:01:32]} Kf7 {[%emt 0:02:46]} 37. Kg1 {[%emt 0:00:58]} Bd8 {[%emt 0:00:40]} 38. Rd3 {[%emt 0:00:37]} Bb6 {[%emt 0:01:10]} 39. h4 {[%emt 0:02:19]} h5 {[%emt 0:01:01]} 40. Kg2 {[%emt 0:00:34]} Qc6 {[%emt 0:00:33]} 41. Kh3 {[%emt 0:00:18]} a4 {[%emt 0:03:08]} 42. b3 {[%emt 0:01:13]} axb3 {[%emt 0:00:06]} 43. axb3 {[%emt 0:00:16]} Rc3 {[%emt 0:00:26]} 44. Qd2 {[%emt 0:00:42]} Qa8 {[%emt 0:10:59]} 45. Rxc3 {[%emt 0:00:31]} Nxc3 {[%emt 0:01:00]} 46. Qd3 {[%emt 0:00:43]} Qa1 {[%emt 0:01:26]} 47. Nf3 {[%emt 0:00:31]} Qa2 {[%emt 0:01:37]} 48. Nd2 {[%emt 0:00:16]} Qa1 {[%emt 0:00:36]} 49. Kg2 {[%emt 0:00:18]} Qd1 {[%emt 0:00:55]} 50. Qf1 {[%emt 0:00:45]} Qe2+ {[%emt 0:00:42]} 51. Qxe2 {[%emt 0:00:12]} Nxe2 {[%emt 0:00:02]} 52. Nf3 Nc3 53. Kh3 1/2-1/2

[Event "Karnataka State Open-ch 2018"]
[Site "Bengaluru"]
[Date "2018.04.17"]
[Round "8"]
[White "Ojas, Kulkarni"]
[Black "Malla, Nooka Raju"]
[Result "1-0"]
[ECO "A05"]
[WhiteElo "2252"]
[BlackElo "1969"]
[Annotator "ChessBase"]
[PlyCount "153"]
[EventDate "2018.??.??"]
[EventType "swiss"]
[EventCountry "IND"]
[SourceTitle "playchess.com"]
[Source "ChessBase"]
[SourceQuality "1"]
[TimeControl "5400+30"]

1. Nf3 {[%emt 0:00:00]} Nf6 {[%emt 0:00:12]} 2. b3 {[%emt 0:00:12]} d5 {[%emt 0:00:30]} 3. g3 {[%emt 0:00:20]} g6 {[%emt 0:01:01]} 4. Bg2 {[%emt 0:00:07]} Bg7 {[%emt 0:00:05]} 5. Bb2 {[%emt 0:00:06]} O-O {[%emt 0:00:52]} 6. c4 {[%emt 0:00:17]} c6 {[%emt 0:00:48]} 7. O-O {[%emt 0:00:08]} Bd7 {[%emt 0:00:56]} 8. h3 {[%emt 0:04:05]} Qb6 {[%emt 0:03:56]} 9. Qc1 {[%emt 0:15:42]} Ne4 {[%emt 0:02:19]} 10. Bxg7 {[%emt 0:00:58]} Kxg7 {[%emt 0:03:44]} 11. Qb2+ {[%emt 0:02:51]} f6 {[%emt 0:00:46]} 12. Qd4 {[%emt 0:00:28]} e5 {[%emt 0:08:02]} 13. Qxb6 {[%emt 0:01:07]} axb6 {[%emt 0:00:06]} 14. cxd5 {[%emt 0:11:49]} cxd5 {[%emt 0:00:22]} 15. d3 {[%emt 0:00:16]} Nc5 {[%emt 0:00:14]} 16. Nc3 {[%emt 0:04:28]} d4 {[%emt 0:00:20]} 17. Nd5 {[%emt 0:00:23]} b5 {[%emt 0:05:21]} 18. Rfc1 {[%emt 0:08:04]} Nba6 {[%emt 0:00:40]} 19. Nb6 {[%emt 0:01:32]} Rad8 {[%emt 0:01:48]} 20. b4 {[%emt 0:05:57]} Na4 {[%emt 0:00:15]} 21. Nxa4 {[%emt 0:00:02]} bxa4 {[%emt 0:13:00]} 22. a3 {[%emt 0:00:39]} Bc6 23. Nd2 {[%emt 0:00:02]} Bxg2 {[%emt 0:01:27]} 24. Kxg2 {[%emt 0:20:24]} Rf7 {[%emt 0:19:43]} 25. Ne4 {[%emt 0:01:22]} Rc7 {[%emt 0:01:15]} 26. b5 {[%emt 0:00:10]} Rxc1 {[%emt 0:00:05]} 27. Rxc1 {[%emt 0:00:15]} Nb8 {[%emt 0:00:55]} 28. Nc5 {[%emt 0:02:43]} Rd5 {[%emt 0:06:55]} 29. b6 {[%emt 0:10:35]} Kh6 {[%emt 0:03:40]} 30. Rc4 {[%emt 0:00:06]} Nd7 {[%emt 0:00:22]} 31. Nxd7 {[%emt 0:00:17]} Rxd7 {[%emt 0:00:12]} 32. Rc7 {[%emt 0:00:46]} Rd5 {[%emt 0:00:07]} 33. Rxb7 {[%emt 0:00:22]} Rb5 {[%emt 0:00:12]} 34. Ra7 {[%emt 0:00:02]} Rxb6 {[%emt 0:00:51]} 35. Rxa4 {[%emt 0:05:55]} Kg5 {[%emt 0:00:37]} 36. Ra5 {[%emt 0:00:22]} h5 37. f4+ {[%emt 0:00:11]} Kf5 {[%emt 0:00:54]} 38. Kf3 Ke6 39. fxe5 {[%emt 0:00:40]} f5 {[%emt 0:07:28]} 40. h4 {[%emt 0:01:21]} Rb1 {[%emt 0:04:05]} 41. Ra6+ Kxe5 {[%emt 0:00:27]} 42. Rxg6 {[%emt 0:00:37]} Rf1+ 43. Kg2 Ra1 {[%emt 0:00:39]} 44. Ra6 {[%emt 0:01:00]} Ra2 45. Kf3 {[%emt 0:00:10]} Ra1 {[%emt 0:02:15]} 46. Ra5+ {[%emt 0:00:19]} Kf6 {[%emt 0:00:13]} 47. Ra6+ {[%emt 0:00:11]} Ke5 {[%emt 0:00:15]} 48. Ra5+ {[%emt 0:00:02]} Kf6 {[%emt 0:00:08]} 49. Ra8 {[%emt 0:00:08]} Rf1+ {[%emt 0:01:06]} 50. Kg2 {[%emt 0:00:00]} Re1 {[%emt 0:00:15]} 51. Kf2 Ra1 {[%emt 0:00:14]} 52. a4 {[%emt 0:00:27]} f4 53. a5 {[%emt 0:04:27]} fxg3+ {[%emt 0:01:26]} 54. Kxg3 {[%emt 0:00:06]} Rg1+ {[%emt 0:04:12]} 55. Kf2 {[%emt 0:00:05]} Rg7 {[%emt 0:00:19]} 56. a6 {[%emt 0:00:27]} Kf5 {[%emt 0:00:08]} 57. Kf3 {[%emt 0:00:12]} Rf7 {[%emt 0:00:28]} 58. Re8 {[%emt 0:01:33]} Ra7 {[%emt 0:00:32]} 59. Re4 {[%emt 0:00:14]} Rxa6 {[%emt 0:00:26]} 60. Rxd4 {[%emt 0:00:12]} Ra1 {[%emt 0:01:06]} 61. Rd5+ {[%emt 0:00:36]} Kg6 {[%emt 0:00:14]} 62. Rd6+ {[%emt 0:01:01]} Kg7 {[%emt 0:00:42]} 63. Rd5 {[%emt 0:01:15]} Kg6 {[%emt 0:00:11]} 64. Rg5+ {[%emt 0:00:02]} Kh6 {[%emt 0:00:07]} 65. Kg2 {[%emt 0:02:38]} Re1 {[%emt 0:00:14]} 66. Re5 {[%emt 0:00:19]} Kg6 {[%emt 0:00:14]} 67. d4 {[%emt 0:00:17]} Rd1 {[%emt 0:00:17]} 68. e3 {[%emt 0:00:21]} Rd3 {[%emt 0:00:28]} 69. Kf3 {[%emt 0:00:30]} Rd1 {[%emt 0:00:11]} 70. Rg5+ Kh6 71. d5 {[%emt 0:02:38]} Rd2 {[%emt 0:01:16]} 72. e4 {[%emt 0:00:12]} Rd3+ {[%emt 0:00:25]} 73. Ke2 {[%emt 0:00:36]} Rh3 {[%emt 0:00:26]} 74. d6 {[%emt 0:00:19]} Rxh4 {[%emt 0:00:14]} 75. d7 {[%emt 0:00:44]} Rxe4+ {[%emt 0:00:39]} 76. Kd3 {[%emt 0:00:10]} Re6 {[%emt 0:00:50]} 77. d8=Q {[%emt 0:00:25]} 1-0

[Event "Karnataka State Open-ch 2018"]
[Site "Bengaluru"]
[Date "2018.04.17"]
[Round "8"]
[White "Kulkarni, Vinayak"]
[Black "Sekhawat, Hussen"]
[Result "1-0"]
[ECO "A05"]
[WhiteElo "2179"]
[BlackElo "1915"]
[Annotator "ChessBase"]
[PlyCount "121"]
[EventDate "2018.??.??"]
[EventType "swiss"]
[EventCountry "IND"]
[SourceTitle "playchess.com"]
[Source "ChessBase"]
[SourceQuality "1"]
[TimeControl "5400+30"]

1. Nf3 {[%emt 0:00:00]} Nf6 {[%emt 0:00:20]} 2. g3 {[%emt 0:00:00]} g6 {[%emt 0:00:09]} 3. Bg2 {[%emt 0:00:26]} Bg7 {[%emt 0:00:10]} 4. O-O {[%emt 0:00:39]} O-O {[%emt 0:00:11]} 5. d4 {[%emt 0:00:16]} c5 {[%emt 0:02:37]} 6. c3 {[%emt 0:03:29]} Qc7 {[%emt 0:03:09]} 7. Nbd2 {[%emt 0:09:31]} d6 {[%emt 0:04:47]} 8. dxc5 {[%emt 0:02:13]} Qxc5 {[%emt 0:00:24]} 9. Nd4 {[%emt 0:05:22]} a6 {[%emt 0:03:50]} 10. Ne4 {[%emt 0:02:38]} Nxe4 {[%emt 0:01:20]} 11. Bxe4 {[%emt 0:00:06]} Qc7 {[%emt 0:00:40]} 12. Bg5 {[%emt 0:04:01]} h6 {[%emt 0:02:05]} 13. Be3 {[%emt 0:00:39]} Bh3 {[%emt 0:00:27]} 14. Re1 {[%emt 0:00:53]} Nd7 {[%emt 0:01:49]} 15. Nc2 {[%emt 0:02:47]} Nf6 {[%emt 0:02:29]} 16. Bf3 {[%emt 0:02:31]} Ng4 {[%emt 0:01:26]} 17. Qd2 {[%emt 0:03:43]} Ne5 {[%emt 0:02:31]} 18. Bxh6 {[%emt 0:02:24]} Nxf3+ {[%emt 0:01:25]} 19. exf3 {[%emt 0:00:09]} Qc6 {[%emt 0:03:15]} 20. Nd4 {[%emt 0:05:58]} Qd7 {[%emt 0:13:01]} 21. Rad1 {[%emt 0:09:48]} e5 {[%emt 0:08:24]} 22. Nc2 {[%emt 0:01:55]} Rad8 {[%emt 0:05:16]} 23. Re4 {[%emt 0:03:31]} f5 {[%emt 0:12:02]} 24. Rh4 {[%emt 0:06:42]} f4 {[%emt 0:02:03]} 25. g4 {[%emt 0:03:18]} Bxg4 {[%emt 0:05:21]} 26. Rxg4 {[%emt 0:05:31]} Bxh6 {[%emt 0:01:56]} 27. Rxg6+ {[%emt 0:00:31]} Kh7 {[%emt 0:00:34]} 28. Rxd6 {[%emt 0:04:02]} Rg8+ {[%emt 0:02:07]} 29. Kf1 {[%emt 0:01:47]} Qh3+ {[%emt 0:03:48]} 30. Ke1 {[%emt 0:02:50]} Rde8 {[%emt 0:04:39]} 31. Qd3+ {[%emt 0:02:33]} e4 {[%emt 0:00:51]} 32. fxe4 f3 {[%emt 0:02:42]} 33. Ne3 {[%emt 0:01:43]} Qxh2 {[%emt 0:01:35]} 34. Rd7+ {[%emt 0:03:42]} Kh8 {[%emt 0:01:52]} 35. Qd4+ {[%emt 0:02:04]} Rg7 {[%emt 0:04:55]} 36. Rxg7 {[%emt 0:05:31]} Bxg7 {[%emt 0:00:02]} 37. Qd5 {[%emt 0:00:20]} Qg1+ {[%emt 0:00:52]} 38. Nf1 {[%emt 0:00:09]} Qg4 {[%emt 0:01:51]} 39. Ng3 {[%emt 0:00:29]} Re5 {[%emt 0:00:54]} 40. Qxb7 {[%emt 0:00:28]} a5 {[%emt 0:00:50]} 41. Kd2 {[%emt 0:01:24]} Qe6 {[%emt 0:00:45]} 42. Rh1+ {[%emt 0:00:59]} Kg8 {[%emt 0:00:19]} 43. Qb3 {[%emt 0:00:17]} a4 44. Qxe6+ {[%emt 0:00:10]} Rxe6 {[%emt 0:00:35]} 45. Ke3 {[%emt 0:01:18]} a3 {[%emt 0:01:02]} 46. bxa3 {[%emt 0:00:17]} Rc6 {[%emt 0:00:12]} 47. Kxf3 {[%emt 0:01:15]} Rxc3+ {[%emt 0:00:04]} 48. Kf4 {[%emt 0:00:28]} Rxa3 {[%emt 0:00:10]} 49. Nf5 {[%emt 0:00:09]} Rxa2 {[%emt 0:00:33]} 50. Rg1 {[%emt 0:01:40]} Rxf2+ {[%emt 0:00:00]} 51. Ke3 {[%emt 0:00:06]} Rxf5 52. exf5 {[%emt 0:00:04]} Kf7 {[%emt 0:00:23]} 53. Ke4 {[%emt 0:00:15]} Bf6 {[%emt 0:00:17]} 54. Rg2 {[%emt 0:00:20]} Be7 {[%emt 0:00:25]} 55. Ra2 {[%emt 0:00:14]} Kf6 {[%emt 0:00:28]} 56. Ra6+ {[%emt 0:00:09]} Kf7 {[%emt 0:00:14]} 57. Ke5 {[%emt 0:00:07]} Bd8 {[%emt 0:01:17]} 58. Ra7+ {[%emt 0:00:16]} Ke8 {[%emt 0:00:12]} 59. Ra8 {[%emt 0:00:10]} Kd7 {[%emt 0:00:33]} 60. Rxd8+ {[%emt 0:00:06]} Kxd8 {[%emt 0:00:15]} 61. Ke4 1-0